[Event "Titled Tuesday Blitz September 14 2021"]
[White "Mikhailov, Viacheslav"]
[Black "Chigaev, Maksim"]
[WhiteFideId "4187369"]
[BlackFideId "4108116"]
[WhiteElo "2381"]
[BlackElo "2610"]
[Result "0-1"]
[Round "04"]
[TimeControl "180+1"]
[Date "2021.09.15"]
[WhiteClock "0:00:03"]
[BlackClock "0:00:13"]

1. Nf3 {[%clk 0:03:00]}  Nf6 {[%clk 0:02:59]} 2. g3 {[%clk 0:03:01]}  g6 {[%clk 0:02:59]} 3. Bg2 {[%clk 0:03:01]}  Bg7 {[%clk 0:03:00]} 4. O-O {[%clk 0:03:02]}  O-O {[%clk 0:03:01]} 5. c4 {[%clk 0:03:01]}  d6 {[%clk 0:03:01]} 6. Nc3 {[%clk 0:03:02]}  c5 {[%clk 0:03:00]} 7. d4 {[%clk 0:03:01]}  Nc6 {[%clk 0:03:01]} 8. b3 {[%clk 0:02:59]}  Bg4 {[%clk 0:02:55]} 9. d5 {[%clk 0:02:42]}  Na5 {[%clk 0:02:53]} 10. Bb2 {[%clk 0:02:38]}  a6 {[%clk 0:02:53]} 11. h3 {[%clk 0:02:36]}  Bd7 {[%clk 0:02:53]} 12. e4 {[%clk 0:02:29]}  e5 {[%clk 0:02:43]} 13. dxe6 {[%clk 0:02:28]}  Bxe6 {[%clk 0:02:44]} 14. Qd2 {[%clk 0:02:23]}  Qb6 {[%clk 0:02:33]} 15. Rad1 {[%clk 0:02:18]}  Rad8 {[%clk 0:02:33]} 16. Nd5 {[%clk 0:02:03]}  Bxd5 {[%clk 0:02:22]} 17. exd5 {[%clk 0:01:59]}  Ne4 {[%clk 0:02:07]} 18. Qc2 {[%clk 0:01:55]}  Bxb2 {[%clk 0:02:07]} 19. Qxb2 {[%clk 0:01:55]}  Qb4 {[%clk 0:01:38]} 20. Rfe1 {[%clk 0:01:33]}  Rfe8 {[%clk 0:01:13]} 21. Qc1 {[%clk 0:01:12]}  Nc3 {[%clk 0:00:59]} 22. Rxe8+ {[%clk 0:00:21]}  Rxe8 {[%clk 0:00:59]} 23. Re1 {[%clk 0:00:22]}  Ne2+ {[%clk 0:00:52]} 24. Rxe2 {[%clk 0:00:22]}  Rxe2 {[%clk 0:00:53]} 25. Qf4 {[%clk 0:00:22]}  Qb6 {[%clk 0:00:48]} 26. Qh6 {[%clk 0:00:18]}  f6 {[%clk 0:00:42]} 27. h4 {[%clk 0:00:16]}  Qd8 {[%clk 0:00:33]} 28. Bh3 {[%clk 0:00:14]}  Qf8 {[%clk 0:00:26]} 29. Qf4 {[%clk 0:00:12]}  Qe7 {[%clk 0:00:18]} 30. Be6+ {[%clk 0:00:10]}  Rxe6 {[%clk 0:00:17]} 31. dxe6 {[%clk 0:00:10]}  Qxe6 {[%clk 0:00:18]} 32. h5 {[%clk 0:00:10]}  Kg7 {[%clk 0:00:19]} 33. Qd2 {[%clk 0:00:10]}  Nc6 {[%clk 0:00:18]} 34. h6+ {[%clk 0:00:11]}  Kf7 {[%clk 0:00:19]} 35. Kg2 {[%clk 0:00:11]}  Ke7 {[%clk 0:00:15]} 36. Nh4 {[%clk 0:00:10]}  Nd4 {[%clk 0:00:14]} 37. Qf4 {[%clk 0:00:09]}  g5 {[%clk 0:00:14]} 38. Qe3 {[%clk 0:00:05]}  gxh4 {[%clk 0:00:14]} 39. Qf3 {[%clk 0:00:03]}  Nxf3 {[%clk 0:00:13]} 0-1


[Site "https://www.chess.com"]

[Event "Titled Tuesday Blitz September 14 2021"]
[White "Nakamura, Hikaru"]
[Black "Samadov, Read"]
[WhiteFideId "2016192"]
[BlackFideId "13417444"]
[WhiteElo "3176"]
[BlackElo "2848"]
[Result "1-0"]
[Round "04"]
[TimeControl "180+1"]
[Date "2021.09.15"]
[WhiteClock "0:01:38"]
[BlackClock "0:00:56"]

1. Nf3 {[%clk 0:03:00]}  Nf6 {[%clk 0:02:59]} 2. b3 {[%clk 0:03:01]}  d5 {[%clk 0:02:55]} 3. Bb2 {[%clk 0:03:00]}  Bf5 {[%clk 0:02:55]} 4. e3 {[%clk 0:03:00]}  e6 {[%clk 0:02:55]} 5. Nh4 {[%clk 0:03:00]}  Bg4 {[%clk 0:02:46]} 6. Be2 {[%clk 0:02:59]}  Bxe2 {[%clk 0:02:46]} 7. Qxe2 {[%clk 0:03:00]}  Be7 {[%clk 0:02:46]} 8. O-O {[%clk 0:03:00]}  O-O {[%clk 0:02:46]} 9. f4 {[%clk 0:03:01]}  c5 {[%clk 0:02:43]} 10. d3 {[%clk 0:02:59]}  Nc6 {[%clk 0:02:43]} 11. Nd2 {[%clk 0:02:59]}  Nd7 {[%clk 0:02:41]} 12. Nhf3 {[%clk 0:02:59]}  Bf6 {[%clk 0:02:41]} 13. d4 {[%clk 0:02:56]}  cxd4 {[%clk 0:02:41]} 14. exd4 {[%clk 0:02:57]}  Re8 {[%clk 0:02:38]} 15. Ne5 {[%clk 0:02:51]}  Nf8 {[%clk 0:02:37]} 16. Ndf3 {[%clk 0:02:49]}  Ng6 {[%clk 0:02:35]} 17. g3 {[%clk 0:02:42]}  Rc8 {[%clk 0:02:32]} 18. c3 {[%clk 0:02:41]}  Nge7 {[%clk 0:02:12]} 19. g4 {[%clk 0:02:39]}  g6 {[%clk 0:02:12]} 20. h4 {[%clk 0:02:35]}  Bg7 {[%clk 0:02:06]} 21. Ng5 {[%clk 0:02:32]}  f6 {[%clk 0:01:45]} 22. Nxe6 {[%clk 0:02:21]}  Qd6 {[%clk 0:01:44]} 23. Nd3 {[%clk 0:02:11]}  Kf7 {[%clk 0:01:06]} 24. Rae1 {[%clk 0:01:57]}  Ng8 {[%clk 0:01:01]} 25. f5 {[%clk 0:01:43]}  Qg3+ {[%clk 0:00:57]} 26. Qg2 {[%clk 0:01:38]}  Qxd3 {[%clk 0:00:56]} 27. Nc5 {[%clk 0:01:38]} 1-0


[Site "https://www.chess.com"]

[Event "Titled Tuesday Blitz September 14 2021"]
[White "Nazaretyan, Tigran"]
[Black "Molina, Roberto Junio Brito"]
[WhiteFideId "24162345"]
[BlackFideId "2109450"]
[WhiteElo "2212"]
[BlackElo "2402"]
[Result "1-0"]
[Round "04"]
[TimeControl "180+1"]
[Date "2021.09.15"]
[WhiteClock "0:01:05"]
[BlackClock "0:00:02"]

1. d4 {[%clk 0:03:00]}  d5 {[%clk 0:02:59]} 2. c4 {[%clk 0:03:00]}  c6 {[%clk 0:02:58]} 3. Nf3 {[%clk 0:02:59]}  Nf6 {[%clk 0:02:58]} 4. Nc3 {[%clk 0:02:59]}  dxc4 {[%clk 0:02:57]} 5. a4 {[%clk 0:02:58]}  Bf5 {[%clk 0:02:56]} 6. Ne5 {[%clk 0:02:57]}  Nbd7 {[%clk 0:02:56]} 7. Nxc4 {[%clk 0:02:56]}  Nb6 {[%clk 0:02:56]} 8. Ne5 {[%clk 0:02:54]}  Nfd7 {[%clk 0:02:55]} 9. a5 {[%clk 0:02:43]}  Nxe5 {[%clk 0:02:28]} 10. axb6 {[%clk 0:02:42]}  Nd7 {[%clk 0:02:25]} 11. e4 {[%clk 0:02:38]}  Bg6 {[%clk 0:02:22]} 12. bxa7 {[%clk 0:02:34]}  Qb6 {[%clk 0:02:21]} 13. Qa4 {[%clk 0:02:29]}  e5 {[%clk 0:02:20]} 14. dxe5 {[%clk 0:02:21]}  Bc5 {[%clk 0:02:17]} 15. Qc2 {[%clk 0:02:19]}  Rxa7 {[%clk 0:02:13]} 16. Rxa7 {[%clk 0:02:16]}  Qxa7 {[%clk 0:02:13]} 17. f4 {[%clk 0:02:14]}  O-O {[%clk 0:02:00]} 18. h3 {[%clk 0:02:09]}  h6 {[%clk 0:01:46]} 19. Bd3 {[%clk 0:01:52]}  Re8 {[%clk 0:01:40]} 20. Ke2 {[%clk 0:01:49]}  Bh7 {[%clk 0:01:34]} 21. Rd1 {[%clk 0:01:47]}  b5 {[%clk 0:01:27]} 22. Kf3 {[%clk 0:01:44]}  f6 {[%clk 0:01:21]} 23. Nxb5 {[%clk 0:01:36]}  cxb5 {[%clk 0:00:27]} 24. Bxb5 {[%clk 0:01:35]}  Nxe5+ {[%clk 0:00:27]} 25. fxe5 {[%clk 0:01:31]}  Rxe5 {[%clk 0:00:25]} 26. Rd8+ {[%clk 0:01:20]}  Kf7 {[%clk 0:00:20]} 27. Qc4+ {[%clk 0:01:19]}  Kg6 {[%clk 0:00:17]} 28. Be8+ {[%clk 0:01:16]}  Rxe8 {[%clk 0:00:05]} 29. Rxe8 {[%clk 0:01:16]}  Qc7 {[%clk 0:00:02]} 30. Qd5 {[%clk 0:01:05]} 1-0


[Site "https://www.chess.com"]

[Event "Titled Tuesday Blitz September 14 2021"]
[White "Nesterov, Arseniy"]
[Black "Rozman, Levy"]
[WhiteFideId "24198455"]
[BlackFideId "2039877"]
[WhiteElo "2494"]
[BlackElo "2376"]
[Result "1-0"]
[Round "04"]
[TimeControl "180+1"]
[Date "2021.09.15"]
[WhiteClock "0:00:11"]
[BlackClock "0:00:01"]

1. d4 {[%clk 0:03:00]}  g6 {[%clk 0:02:57]} 2. e4 {[%clk 0:03:00]}  Bg7 {[%clk 0:02:57]} 3. Nf3 {[%clk 0:03:00]}  d6 {[%clk 0:02:57]} 4. Bc4 {[%clk 0:03:00]}  Nc6 {[%clk 0:02:56]} 5. O-O {[%clk 0:02:56]}  e5 {[%clk 0:02:49]} 6. dxe5 {[%clk 0:02:48]}  Nxe5 {[%clk 0:02:43]} 7. Nxe5 {[%clk 0:02:46]}  Bxe5 {[%clk 0:02:43]} 8. Qd5 {[%clk 0:02:12]}  Qe7 {[%clk 0:02:05]} 9. Nc3 {[%clk 0:01:54]}  Bg7 {[%clk 0:01:40]} 10. Bg5 {[%clk 0:01:49]}  f6 {[%clk 0:01:12]} 11. Bf4 {[%clk 0:01:40]}  Nh6 {[%clk 0:01:08]} 12. Nb5 {[%clk 0:01:15]}  a6 {[%clk 0:01:00]} 13. Nc3 {[%clk 0:00:31]}  Nf7 {[%clk 0:00:50]} 14. Qd2 {[%clk 0:00:28]}  Be6 {[%clk 0:00:38]} 15. Nd5 {[%clk 0:00:27]}  Bxd5 {[%clk 0:00:36]} 16. Bxd5 {[%clk 0:00:26]}  Rb8 {[%clk 0:00:32]} 17. Rad1 {[%clk 0:00:21]}  O-O {[%clk 0:00:32]} 18. Rfe1 {[%clk 0:00:22]}  Kh8 {[%clk 0:00:33]} 19. h3 {[%clk 0:00:22]}  Ne5 {[%clk 0:00:30]} 20. Bg3 {[%clk 0:00:21]}  Rfe8 {[%clk 0:00:28]} 21. f4 {[%clk 0:00:21]}  Nd7 {[%clk 0:00:29]} 22. f5 {[%clk 0:00:20]}  Rbd8 {[%clk 0:00:25]} 23. Bxb7 {[%clk 0:00:19]}  Nc5 {[%clk 0:00:20]} 24. Bc6 {[%clk 0:00:18]}  Rf8 {[%clk 0:00:19]} 25. b4 {[%clk 0:00:18]}  Nd7 {[%clk 0:00:17]} 26. Bd5 {[%clk 0:00:18]}  Ne5 {[%clk 0:00:17]} 27. c3 {[%clk 0:00:18]}  gxf5 {[%clk 0:00:16]} 28. exf5 {[%clk 0:00:18]}  Qd7 {[%clk 0:00:16]} 29. Be6 {[%clk 0:00:18]}  Qb5 {[%clk 0:00:16]} 30. Kh1 {[%clk 0:00:16]}  d5 {[%clk 0:00:10]} 31. Qd4 {[%clk 0:00:13]}  c6 {[%clk 0:00:09]} 32. Rxe5 {[%clk 0:00:10]}  fxe5 {[%clk 0:00:09]} 33. Bxe5 {[%clk 0:00:11]}  Qb7 {[%clk 0:00:01]} 34. f6 {[%clk 0:00:11]} 1-0


[Site "https://www.chess.com"]

[Event "Titled Tuesday Blitz September 14 2021"]
[White "Ozen, Bahadir"]
[Black "Pridorozhni, Aleksei"]
[WhiteFideId "6337058"]
[BlackFideId "4127870"]
[WhiteElo "2503"]
[BlackElo "2565"]
[Result "1/2-1/2"]
[Round "04"]
[TimeControl "180+1"]
[Date "2021.09.15"]
[WhiteClock "0:00:08"]
[BlackClock "0:00:14"]

1. e4 {[%clk 0:03:00]}  c5 {[%clk 0:02:58]} 2. Nf3 {[%clk 0:03:01]}  e6 {[%clk 0:02:59]} 3. d4 {[%clk 0:03:01]}  cxd4 {[%clk 0:03:00]} 4. Nxd4 {[%clk 0:03:02]}  Nf6 {[%clk 0:03:00]} 5. Nc3 {[%clk 0:03:00]}  Nc6 {[%clk 0:03:01]} 6. Ndb5 {[%clk 0:02:52]}  Bc5 {[%clk 0:03:00]} 7. Nd6+ {[%clk 0:02:49]}  Ke7 {[%clk 0:03:00]} 8. Nxc8+ {[%clk 0:02:47]}  Rxc8 {[%clk 0:03:01]} 9. Bd3 {[%clk 0:02:36]}  Qc7 {[%clk 0:03:01]} 10. O-O {[%clk 0:02:32]}  a6 {[%clk 0:03:01]} 11. Bg5 {[%clk 0:02:30]}  h6 {[%clk 0:03:01]} 12. Bh4 {[%clk 0:02:30]}  Bd6 {[%clk 0:03:01]} 13. Bg3 {[%clk 0:02:30]}  Bxg3 {[%clk 0:03:01]} 14. hxg3 {[%clk 0:02:31]}  h5 {[%clk 0:03:02]} 15. Re1 {[%clk 0:02:27]}  h4 {[%clk 0:02:49]} 16. gxh4 {[%clk 0:01:48]}  Rxh4 {[%clk 0:02:48]} 17. g3 {[%clk 0:01:48]}  Rh6 {[%clk 0:02:37]} 18. Bf1 {[%clk 0:01:41]}  Rch8 {[%clk 0:02:34]} 19. Bg2 {[%clk 0:01:41]}  Kf8 {[%clk 0:02:33]} 20. Qd2 {[%clk 0:01:39]}  Ne5 {[%clk 0:02:31]} 21. Rad1 {[%clk 0:01:37]}  Nfg4 {[%clk 0:02:19]} 22. f4 {[%clk 0:01:01]}  Nc4 {[%clk 0:01:50]} 23. Qxd7 {[%clk 0:01:01]}  Qb6+ {[%clk 0:01:37]} 24. Qd4 {[%clk 0:01:00]}  Qxd4+ {[%clk 0:01:30]} 25. Rxd4 {[%clk 0:01:01]}  b5 {[%clk 0:01:28]} 26. Rd8+ {[%clk 0:00:58]}  Ke7 {[%clk 0:01:28]} 27. Rxh8 {[%clk 0:00:59]}  Rxh8 {[%clk 0:01:28]} 28. b3 {[%clk 0:00:59]}  Na3 {[%clk 0:01:27]} 29. Bf3 {[%clk 0:00:58]}  Nh6 {[%clk 0:01:24]} 30. Ne2 {[%clk 0:00:51]}  Rc8 {[%clk 0:01:20]} 31. c3 {[%clk 0:00:46]}  Ng8 {[%clk 0:01:12]} 32. e5 {[%clk 0:00:44]}  Nh6 {[%clk 0:01:11]} 33. g4 {[%clk 0:00:45]}  Rd8 {[%clk 0:01:08]} 34. Nd4 {[%clk 0:00:44]}  Rc8 {[%clk 0:01:07]} 35. Ne2 {[%clk 0:00:33]}  Nc2 {[%clk 0:01:01]} 36. Rd1 {[%clk 0:00:28]}  Ne3 {[%clk 0:01:02]} 37. Rd3 {[%clk 0:00:29]}  Nexg4 {[%clk 0:00:59]} 38. Bxg4 {[%clk 0:00:30]}  Nxg4 {[%clk 0:00:59]} 39. Rg3 {[%clk 0:00:31]}  Nh6 {[%clk 0:00:58]} 40. Rxg7 {[%clk 0:00:29]}  Nf5 {[%clk 0:00:58]} 41. Rh7 {[%clk 0:00:27]}  Rd8 {[%clk 0:00:58]} 42. Kf2 {[%clk 0:00:27]}  Rd2 {[%clk 0:00:58]} 43. Rh8 {[%clk 0:00:25]}  Rxa2 {[%clk 0:00:57]} 44. Rb8 {[%clk 0:00:24]}  Ra3 {[%clk 0:00:43]} 45. b4 {[%clk 0:00:23]}  Ra2 {[%clk 0:00:44]} 46. Rb7+ {[%clk 0:00:23]}  Kf8 {[%clk 0:00:44]} 47. Ke1 {[%clk 0:00:24]}  Ne3 {[%clk 0:00:42]} 48. Nd4 {[%clk 0:00:22]}  Nd5 {[%clk 0:00:42]} 49. f5 {[%clk 0:00:22]}  exf5 {[%clk 0:00:31]} 50. Nxf5 {[%clk 0:00:22]}  Kg8 {[%clk 0:00:32]} 51. Nh6+ {[%clk 0:00:22]}  Kg7 {[%clk 0:00:31]} 52. Nxf7 {[%clk 0:00:23]}  Nxc3 {[%clk 0:00:31]} 53. Nd6+ {[%clk 0:00:19]}  Kg6 {[%clk 0:00:32]} 54. Kf1 {[%clk 0:00:16]}  Ra1+ {[%clk 0:00:23]} 55. Kg2 {[%clk 0:00:15]}  Re1 {[%clk 0:00:23]} 56. Rb6 {[%clk 0:00:15]}  Kg5 {[%clk 0:00:20]} 57. Rxa6 {[%clk 0:00:14]}  Nd5 {[%clk 0:00:18]} 58. Nxb5 {[%clk 0:00:11]}  Rxe5 {[%clk 0:00:16]} 59. Nd4 {[%clk 0:00:09]}  Nf4+ {[%clk 0:00:15]} 60. Kf3 {[%clk 0:00:09]}  Nd3 {[%clk 0:00:13]} 61. Ra5 {[%clk 0:00:08]}  Kf6 {[%clk 0:00:13]} 62. Rxe5 {[%clk 0:00:08]}  Kxe5 {[%clk 0:00:14]} 63. Nc2 {[%clk 0:00:08]}  Nxb4 {[%clk 0:00:14]} 1/2-1/2


[Site "https://www.chess.com"]

[Event "Titled Tuesday Blitz September 14 2021"]
[White "Rastbod, Ali"]
[Black "Holt, Conrad"]
[WhiteFideId "12567477"]
[BlackFideId "2034387"]
[WhiteElo "2226"]
[BlackElo "2586"]
[Result "1-0"]
[Round "04"]
[TimeControl "180+1"]
[Date "2021.09.15"]
[WhiteClock "0:00:09"]
[BlackClock "0:00:08"]

1. c4 {[%clk 0:03:00]}  c6 {[%clk 0:02:56]} 2. Nc3 {[%clk 0:02:57]}  d5 {[%clk 0:02:57]} 3. cxd5 {[%clk 0:02:58]}  cxd5 {[%clk 0:02:57]} 4. d4 {[%clk 0:02:59]}  Nc6 {[%clk 0:02:55]} 5. Bf4 {[%clk 0:02:59]}  Nf6 {[%clk 0:02:53]} 6. e3 {[%clk 0:02:55]}  Bf5 {[%clk 0:02:52]} 7. Qb3 {[%clk 0:02:54]}  Na5 {[%clk 0:02:52]} 8. Qa4+ {[%clk 0:02:53]}  Bd7 {[%clk 0:02:52]} 9. Qc2 {[%clk 0:02:53]}  e6 {[%clk 0:02:52]} 10. Bd3 {[%clk 0:02:52]}  Nc6 {[%clk 0:02:52]} 11. a3 {[%clk 0:02:52]}  Nh5 {[%clk 0:02:52]} 12. Bg3 {[%clk 0:02:43]}  Be7 {[%clk 0:02:27]} 13. Nf3 {[%clk 0:02:36]}  g6 {[%clk 0:02:25]} 14. O-O {[%clk 0:02:34]}  Nxg3 {[%clk 0:02:22]} 15. hxg3 {[%clk 0:02:34]}  Rc8 {[%clk 0:02:21]} 16. e4 {[%clk 0:02:32]}  dxe4 {[%clk 0:02:20]} 17. Bxe4 {[%clk 0:02:33]}  O-O {[%clk 0:02:19]} 18. Rad1 {[%clk 0:02:32]}  Re8 {[%clk 0:02:13]} 19. Qd2 {[%clk 0:02:25]}  Bf6 {[%clk 0:02:01]} 20. Rfe1 {[%clk 0:02:22]}  Qc7 {[%clk 0:01:50]} 21. Qf4 {[%clk 0:02:16]}  Kg7 {[%clk 0:01:28]} 22. Nb5 {[%clk 0:02:05]}  Qxf4 {[%clk 0:01:25]} 23. gxf4 {[%clk 0:02:06]}  Red8 {[%clk 0:01:22]} 24. Nd6 {[%clk 0:01:54]}  Rb8 {[%clk 0:01:22]} 25. Ne5 {[%clk 0:01:54]}  Be8 {[%clk 0:01:07]} 26. Nxe8+ {[%clk 0:01:34]}  Rxe8 {[%clk 0:01:08]} 27. Bxc6 {[%clk 0:01:34]}  bxc6 {[%clk 0:01:07]} 28. b4 {[%clk 0:01:35]}  Rbc8 {[%clk 0:00:48]} 29. Rc1 {[%clk 0:01:31]}  Rc7 {[%clk 0:00:38]} 30. Nxc6 {[%clk 0:01:12]}  Rec8 {[%clk 0:00:37]} 31. b5 {[%clk 0:01:13]}  Bxd4 {[%clk 0:00:37]} 32. a4 {[%clk 0:01:12]}  a6 {[%clk 0:00:27]} 33. Red1 {[%clk 0:01:07]}  Bb6 {[%clk 0:00:20]} 34. g3 {[%clk 0:00:44]}  h5 {[%clk 0:00:19]} 35. Kg2 {[%clk 0:00:44]}  Kf6 {[%clk 0:00:19]} 36. Rc2 {[%clk 0:00:37]}  Ra8 {[%clk 0:00:18]} 37. Rcd2 {[%clk 0:00:27]}  axb5 {[%clk 0:00:18]} 38. axb5 {[%clk 0:00:27]}  Ra3 {[%clk 0:00:17]} 39. Rd3 {[%clk 0:00:25]}  Ra2 {[%clk 0:00:15]} 40. R1d2 {[%clk 0:00:25]}  Rxd2 {[%clk 0:00:15]} 41. Rxd2 {[%clk 0:00:25]}  Rb7 {[%clk 0:00:15]} 42. Kf3 {[%clk 0:00:23]}  Bc5 {[%clk 0:00:13]} 43. Rb2 {[%clk 0:00:22]}  Kf5 {[%clk 0:00:11]} 44. Na5 {[%clk 0:00:17]}  Ra7 {[%clk 0:00:06]} 45. Nc4 {[%clk 0:00:17]}  Ra4 {[%clk 0:00:06]} 46. Ne3+ {[%clk 0:00:12]}  Kf6 {[%clk 0:00:04]} 47. b6 {[%clk 0:00:12]}  Bd6 {[%clk 0:00:04]} 48. b7 {[%clk 0:00:11]}  Bb8 {[%clk 0:00:05]} 49. Rb5 {[%clk 0:00:06]}  Ke7 {[%clk 0:00:05]} 50. Nc2 {[%clk 0:00:03]}  Kd7 {[%clk 0:00:05]} 51. Rb3 {[%clk 0:00:03]}  Ra7 {[%clk 0:00:05]} 52. Na3 {[%clk 0:00:02]}  Kc6 {[%clk 0:00:05]} 53. Nc4 {[%clk 0:00:02]}  Rxb7 {[%clk 0:00:05]} 54. Na5+ {[%clk 0:00:03]}  Kd5 {[%clk 0:00:04]} 55. Rxb7 {[%clk 0:00:04]}  Bd6 {[%clk 0:00:04]} 56. Rxf7 {[%clk 0:00:04]}  e5 {[%clk 0:00:04]} 57. fxe5 {[%clk 0:00:03]}  Kxe5 {[%clk 0:00:05]} 58. Nc4+ {[%clk 0:00:03]}  Ke6 {[%clk 0:00:05]} 59. Nxd6 {[%clk 0:00:04]}  g5 {[%clk 0:00:04]} 60. Rh7 {[%clk 0:00:04]}  g4+ {[%clk 0:00:05]} 61. Kf4 {[%clk 0:00:05]}  Kf6 {[%clk 0:00:05]} 62. Rxh5 {[%clk 0:00:06]}  Kg6 {[%clk 0:00:06]} 63. Rg5+ {[%clk 0:00:06]}  Kh6 {[%clk 0:00:06]} 64. Nf5+ {[%clk 0:00:06]}  Kh7 {[%clk 0:00:07]} 65. Ke5 {[%clk 0:00:07]}  Kh8 {[%clk 0:00:07]} 66. Kf6 {[%clk 0:00:08]}  Kh7 {[%clk 0:00:08]} 67. Kf7 {[%clk 0:00:08]}  Kh8 {[%clk 0:00:08]} 68. Rh5# {[%clk 0:00:09]} 1-0


[Site "https://www.chess.com"]

[Event "Titled Tuesday Blitz September 14 2021"]
[White "Sarana, Alexey"]
[Black "Csonka, Balazs"]
[WhiteFideId "24133795"]
[BlackFideId "742910"]
[WhiteElo "2671"]
[BlackElo "2404"]
[Result "0-1"]
[Round "04"]
[TimeControl "180+1"]
[Date "2021.09.15"]
[WhiteClock "0:00:07"]
[BlackClock "0:00:04"]

1. e4 {[%clk 0:03:00]}  e5 {[%clk 0:02:57]} 2. Nf3 {[%clk 0:02:59]}  Nc6 {[%clk 0:02:58]} 3. Bb5 {[%clk 0:02:57]}  a6 {[%clk 0:02:58]} 4. Ba4 {[%clk 0:02:57]}  Bc5 {[%clk 0:02:58]} 5. c3 {[%clk 0:02:56]}  Nge7 {[%clk 0:02:58]} 6. d4 {[%clk 0:02:56]}  exd4 {[%clk 0:02:59]} 7. cxd4 {[%clk 0:02:56]}  Bb4+ {[%clk 0:02:58]} 8. Nc3 {[%clk 0:02:55]}  d5 {[%clk 0:02:57]} 9. e5 {[%clk 0:02:55]}  Bg4 {[%clk 0:02:52]} 10. Be3 {[%clk 0:02:55]}  O-O {[%clk 0:02:49]} 11. h3 {[%clk 0:02:54]}  Bxf3 {[%clk 0:02:36]} 12. Qxf3 {[%clk 0:02:52]}  f6 {[%clk 0:02:34]} 13. exf6 {[%clk 0:02:37]}  Rxf6 {[%clk 0:02:34]} 14. Qg4 {[%clk 0:02:37]}  Nf5 {[%clk 0:02:00]} 15. O-O {[%clk 0:02:34]}  Nce7 {[%clk 0:01:11]} 16. Bg5 {[%clk 0:02:31]}  Rf7 {[%clk 0:01:10]} 17. Rfe1 {[%clk 0:01:49]}  c6 {[%clk 0:00:57]} 18. Bc2 {[%clk 0:01:46]}  Qb6 {[%clk 0:00:50]} 19. Bxe7 {[%clk 0:01:32]}  Nxe7 {[%clk 0:00:50]} 20. Re3 {[%clk 0:01:24]}  Raf8 {[%clk 0:00:43]} 21. Rf1 {[%clk 0:01:20]}  Nf5 {[%clk 0:00:37]} 22. Bxf5 {[%clk 0:01:06]}  Rxf5 {[%clk 0:00:38]} 23. Ne2 {[%clk 0:01:06]}  Bd6 {[%clk 0:00:35]} 24. Rb3 {[%clk 0:01:05]}  Qc7 {[%clk 0:00:34]} 25. g3 {[%clk 0:01:03]}  Qf7 {[%clk 0:00:29]} 26. f4 {[%clk 0:01:02]}  Re8 {[%clk 0:00:22]} 27. h4 {[%clk 0:01:02]}  Rf6 {[%clk 0:00:15]} 28. Rf2 {[%clk 0:00:58]}  Rfe6 {[%clk 0:00:15]} 29. Kg2 {[%clk 0:00:46]}  R6e7 {[%clk 0:00:14]} 30. Ng1 {[%clk 0:00:44]}  h5 {[%clk 0:00:11]} 31. Qd1 {[%clk 0:00:41]}  Qg6 {[%clk 0:00:07]} 32. Nh3 {[%clk 0:00:29]}  Re3 {[%clk 0:00:07]} 33. Rxe3 {[%clk 0:00:24]}  Rxe3 {[%clk 0:00:08]} 34. Ng5 {[%clk 0:00:24]}  Be7 {[%clk 0:00:05]} 35. Nf3 {[%clk 0:00:20]}  Bd6 {[%clk 0:00:03]} 36. Ne5 {[%clk 0:00:15]}  Qxg3+ {[%clk 0:00:01]} 37. Kf1 {[%clk 0:00:15]}  Bxe5 {[%clk 0:00:02]} 38. dxe5 {[%clk 0:00:09]}  Qh3+ {[%clk 0:00:02]} 39. Rg2 {[%clk 0:00:10]}  Qh1+ {[%clk 0:00:02]} 40. Rg1 {[%clk 0:00:10]}  Qf3+ {[%clk 0:00:02]} 41. Qxf3 {[%clk 0:00:10]}  Rxf3+ {[%clk 0:00:02]} 42. Ke2 {[%clk 0:00:11]}  Rxf4 {[%clk 0:00:03]} 43. Kd3 {[%clk 0:00:11]}  Rf5 {[%clk 0:00:02]} 44. Kd4 {[%clk 0:00:11]}  b6 {[%clk 0:00:03]} 45. e6 {[%clk 0:00:10]}  Kf8 {[%clk 0:00:03]} 46. Rg6 {[%clk 0:00:09]}  Ke7 {[%clk 0:00:03]} 47. Rxg7+ {[%clk 0:00:10]}  Kxe6 {[%clk 0:00:03]} 48. Rb7 {[%clk 0:00:11]}  Rf4+ {[%clk 0:00:02]} 49. Ke3 {[%clk 0:00:11]}  Rb4 {[%clk 0:00:02]} 50. b3 {[%clk 0:00:11]}  Kd6 {[%clk 0:00:03]} 51. Kf3 {[%clk 0:00:11]}  Kc5 {[%clk 0:00:03]} 52. Kg3 {[%clk 0:00:11]}  Rg4+ {[%clk 0:00:03]} 53. Kh3 {[%clk 0:00:12]}  Re4 {[%clk 0:00:04]} 54. Rh7 {[%clk 0:00:12]}  Re5 {[%clk 0:00:03]} 55. Kg3 {[%clk 0:00:12]}  d4 {[%clk 0:00:03]} 56. Kf2 {[%clk 0:00:04]}  d3 {[%clk 0:00:03]} 57. Rg7 {[%clk 0:00:03]}  d2 {[%clk 0:00:03]} 58. Rg1 {[%clk 0:00:04]}  Kd4 {[%clk 0:00:03]} 59. Rg6 {[%clk 0:00:04]}  d1=Q {[%clk 0:00:02]} 60. Rd6+ {[%clk 0:00:05]}  Rd5 {[%clk 0:00:03]} 61. Re6 {[%clk 0:00:06]}  Qd2+ {[%clk 0:00:03]} 62. Re2 {[%clk 0:00:07]}  Qxe2+ {[%clk 0:00:03]} 63. Kxe2 {[%clk 0:00:07]}  Ke4 {[%clk 0:00:04]} 0-1


[Site "https://www.chess.com"]

[Event "Titled Tuesday Blitz September 14 2021"]
[White "Seliverstov, Vladimir"]
[Black "Zhigalko, Sergei"]
[WhiteFideId "4192036"]
[BlackFideId "13502956"]
[WhiteElo "2489"]
[BlackElo "2662"]
[Result "0-1"]
[Round "04"]
[TimeControl "180+1"]
[Date "2021.09.15"]
[WhiteClock "0:00:35"]
[BlackClock "0:00:29"]

1. c4 {[%clk 0:03:00]}  e5 {[%clk 0:02:58]} 2. g3 {[%clk 0:03:00]}  Nf6 {[%clk 0:02:58]} 3. Bg2 {[%clk 0:03:00]}  c6 {[%clk 0:02:58]} 4. d4 {[%clk 0:03:00]}  exd4 {[%clk 0:02:58]} 5. Qxd4 {[%clk 0:03:01]}  Na6 {[%clk 0:02:59]} 6. Nc3 {[%clk 0:03:00]}  Bc5 {[%clk 0:02:58]} 7. Qd2 {[%clk 0:02:59]}  O-O {[%clk 0:02:56]} 8. Nh3 {[%clk 0:02:55]}  Re8 {[%clk 0:02:52]} 9. Nf4 {[%clk 0:02:51]}  Bf8 {[%clk 0:02:51]} 10. O-O {[%clk 0:02:51]}  Nc5 {[%clk 0:02:50]} 11. b3 {[%clk 0:02:48]}  a5 {[%clk 0:02:50]} 12. Qc2 {[%clk 0:02:44]}  d6 {[%clk 0:02:48]} 13. Bb2 {[%clk 0:02:32]}  Qb6 {[%clk 0:02:43]} 14. Rab1 {[%clk 0:02:20]}  Nfd7 {[%clk 0:02:21]} 15. Ne4 {[%clk 0:02:14]}  h6 {[%clk 0:02:10]} 16. Rfd1 {[%clk 0:02:07]}  Nxe4 {[%clk 0:02:08]} 17. Bxe4 {[%clk 0:02:08]}  Nc5 {[%clk 0:02:04]} 18. Bf3 {[%clk 0:01:59]}  Bd7 {[%clk 0:01:50]} 19. Nh5 {[%clk 0:01:55]}  Qd8 {[%clk 0:01:33]} 20. Rd4 {[%clk 0:01:43]}  Ne6 {[%clk 0:01:25]} 21. Rd2 {[%clk 0:01:31]}  Ng5 {[%clk 0:01:23]} 22. Bg2 {[%clk 0:01:28]}  Nh3+ {[%clk 0:01:16]} 23. Kf1 {[%clk 0:01:26]}  Qg5 {[%clk 0:01:14]} 24. Nf4 {[%clk 0:00:46]}  Nxf4 {[%clk 0:01:10]} 25. gxf4 {[%clk 0:00:47]}  Qxf4 {[%clk 0:01:10]} 26. Kg1 {[%clk 0:00:46]}  Bf5 {[%clk 0:01:01]} 27. e4 {[%clk 0:00:41]}  Bxe4 {[%clk 0:00:49]} 28. Bxe4 {[%clk 0:00:41]}  Rxe4 {[%clk 0:00:50]} 29. Rd3 {[%clk 0:00:40]}  Qf5 {[%clk 0:00:43]} 30. Qc3 {[%clk 0:00:35]}  Re2 {[%clk 0:00:29]} 0-1


[Site "https://www.chess.com"]